[Event "FIDE World Rapid Chess Championship 2021"]
[White "Parligras, Mircea-Emilian"]
[Black "Muradli, Mahammad"]
[WhiteFideId "1204297"]
[BlackFideId "13409301"]
[WhiteElo "2550"]
[BlackElo "2285"]
[Result "0-1"]
[Round "11"]
[TimeControl "900+10"]
[Date "2021.12.28"]
[WhiteClock "0:00:21"]
[BlackClock "0:00:30"]

1. d4 {[%clk 0:15:00]}  d6 {[%clk 0:15:00]} 2. e4 {[%clk 0:15:00]}  g6 {[%clk 0:15:00]} 3. Nf3 {[%clk 0:15:00]}  Bg7 {[%clk 0:15:00]} 4. Bc4 {[%clk 0:15:00]}  Nf6 {[%clk 0:15:00]} 5. Qe2 {[%clk 0:15:00]}  O-O {[%clk 0:15:27]} 6. O-O {[%clk 0:15:10]}  c6 {[%clk 0:15:27]} 7. Nbd2 {[%clk 0:15:10]}  d5 {[%clk 0:15:27]} 8. Bb3 {[%clk 0:15:10]}  dxe4 {[%clk 0:14:51]} 9. Nxe4 {[%clk 0:14:53]}  Nbd7 {[%clk 0:14:51]} 10. Re1 {[%clk 0:14:53]}  Nd5 {[%clk 0:14:51]} 11. c3 {[%clk 0:14:42]}  a5 {[%clk 0:12:58]} 12. a3 {[%clk 0:14:42]}  N7f6 {[%clk 0:12:58]} 13. h3 {[%clk 0:14:42]}  b6 {[%clk 0:12:36]} 14. Ne5 {[%clk 0:11:06]}  Bb7 {[%clk 0:12:36]} 15. Ng5 {[%clk 0:11:06]}  a4 {[%clk 0:12:19]} 16. Ba2 {[%clk 0:09:27]}  b5 {[%clk 0:09:45]} 17. Bd2 {[%clk 0:09:17]}  Qd6 {[%clk 0:06:40]} 18. Nd3 {[%clk 0:09:17]}  Bc8 {[%clk 0:06:07]} 19. Rad1 {[%clk 0:07:51]}  Bf5 {[%clk 0:06:07]} 20. Nc5 {[%clk 0:06:58]}  Rfe8 {[%clk 0:04:18]} 21. Nf3 {[%clk 0:06:58]}  Nd7 {[%clk 0:04:21]} 22. g4 {[%clk 0:05:27]}  Bc2 {[%clk 0:04:21]} 23. Rc1 {[%clk 0:05:27]}  Bb3 {[%clk 0:04:21]} 24. Nxb3 {[%clk 0:05:27]}  axb3 {[%clk 0:04:21]} 25. Bxb3 {[%clk 0:05:27]}  e5 {[%clk 0:04:21]} 26. dxe5 {[%clk 0:05:27]}  Nxe5 {[%clk 0:04:21]} 27. Nxe5 {[%clk 0:05:27]}  Bxe5 {[%clk 0:04:21]} 28. Qf3 {[%clk 0:04:59]}  Re6 {[%clk 0:02:45]} 29. Bh6 {[%clk 0:04:38]}  Rae8 {[%clk 0:00:56]} 30. Rcd1 {[%clk 0:04:38]}  Qe7 {[%clk 0:00:56]} 31. Bxd5 {[%clk 0:04:38]}  cxd5 {[%clk 0:00:56]} 32. Kg2 {[%clk 0:02:31]}  Bc7 {[%clk 0:00:53]} 33. Rxe6 {[%clk 0:02:31]}  fxe6 {[%clk 0:00:53]} 34. Re1 {[%clk 0:02:31]}  Qd6 {[%clk 0:00:53]} 35. Kf1 {[%clk 0:02:31]}  e5 {[%clk 0:00:53]} 36. Rd1 {[%clk 0:02:31]}  e4 {[%clk 0:00:40]} 37. Qe3 {[%clk 0:01:15]}  Bb6 {[%clk 0:00:40]} 38. Qg3 {[%clk 0:01:15]}  Qc6 {[%clk 0:00:40]} 39. Be3 {[%clk 0:01:15]}  Bc7 {[%clk 0:00:40]} 40. Qh4 {[%clk 0:01:15]}  Bd8 {[%clk 0:00:40]} 41. Qh6 {[%clk 0:01:15]}  Rf8 {[%clk 0:00:40]} 42. Bd4 {[%clk 0:01:15]}  Rf7 {[%clk 0:00:40]} 43. Re1 {[%clk 0:00:19]}  Bc7 {[%clk 0:00:16]} 44. Qg5 {[%clk 0:00:19]}  Qe6 {[%clk 0:00:16]} 45. Qd2 {[%clk 0:00:19]}  Rf3 {[%clk 0:00:16]} 46. Kg2 {[%clk 0:00:19]}  Bf4 {[%clk 0:00:16]} 47. Qe2 {[%clk 0:00:19]}  h5 {[%clk 0:00:16]} 48. Rg1 {[%clk 0:00:19]}  hxg4 {[%clk 0:00:16]} 49. hxg4 {[%clk 0:00:19]}  Qxg4+ {[%clk 0:00:16]} 50. Kf1 {[%clk 0:00:19]}  Qh3+ {[%clk 0:00:16]} 51. Ke1 {[%clk 0:00:19]}  Qh2 {[%clk 0:00:30]} 52. Rxg6+ {[%clk 0:00:40]}  Kh7 {[%clk 0:00:30]} 53. Rg7+ {[%clk 0:00:40]}  Kh6 {[%clk 0:00:30]} 54. Qxb5 {[%clk 0:00:40]}  Rd3 {[%clk 0:00:30]} 55. Qc6+ {[%clk 0:00:40]}  Bd6 {[%clk 0:00:30]} 56. Rh7+ {[%clk 0:00:40]}  Kxh7 {[%clk 0:00:30]} 57. Qd7+ {[%clk 0:00:40]}  Kg6 {[%clk 0:00:30]} 58. Qe6+ {[%clk 0:00:40]}  Kh5 {[%clk 0:00:30]} 59. Qxd5+ {[%clk 0:00:40]}  Kh6 {[%clk 0:00:30]} 60. Qe6+ {[%clk 0:00:40]}  Kh5 {[%clk 0:00:30]} 61. Qf5+ {[%clk 0:00:40]}  Kh6 {[%clk 0:00:30]} 62. Qf6+ {[%clk 0:00:21]}  Kh5 {[%clk 0:00:30]} 63. Qf7+ {[%clk 0:00:21]}  Kg4 {[%clk 0:00:30]} 64. Qg6+ {[%clk 0:00:21]}  Kf3 {[%clk 0:00:30]} 65. Qf5+ {[%clk 0:00:21]}  Bf4 {[%clk 0:00:30]} 0-1


[Site "http://www.Chess.com"]

[Event "FIDE World Rapid Chess Championship 2021"]
[White "Kosakowski, Jakub"]
[Black "Demidov, Mikhail"]
[WhiteFideId "1185080"]
[BlackFideId "4197143"]
[WhiteElo "2304"]
[BlackElo "2544"]
[Result "0-1"]
[Round "11"]
[TimeControl "900+10"]
[Date "2021.12.28"]
[WhiteClock "0:00:21"]
[BlackClock "0:00:30"]

1. e4 {[%clk 0:15:00]}  g6 {[%clk 0:15:00]} 2. d4 {[%clk 0:15:00]}  Bg7 {[%clk 0:15:00]} 3. Nf3 {[%clk 0:15:00]}  d6 {[%clk 0:15:00]} 4. Bc4 {[%clk 0:15:00]}  Nc6 {[%clk 0:15:00]} 5. h3 {[%clk 0:15:04]}  Nf6 {[%clk 0:15:13]} 6. Qe2 {[%clk 0:15:04]}  O-O {[%clk 0:15:13]} 7. O-O {[%clk 0:15:04]}  e5 {[%clk 0:15:13]} 8. dxe5 {[%clk 0:15:04]}  Nxe5 {[%clk 0:15:13]} 9. Nxe5 {[%clk 0:15:04]}  dxe5 {[%clk 0:15:13]} 10. Nc3 {[%clk 0:15:04]}  c6 {[%clk 0:15:13]} 11. a4 {[%clk 0:15:04]}  Nh5 {[%clk 0:15:13]} 12. Be3 {[%clk 0:14:41]}  Nf4 {[%clk 0:15:24]} 13. Qf3 {[%clk 0:11:09]}  Be6 {[%clk 0:15:31]} 14. Rfd1 {[%clk 0:11:09]}  Qc7 {[%clk 0:15:31]} 15. Bb3 {[%clk 0:09:41]}  Bxb3 {[%clk 0:14:45]} 16. cxb3 {[%clk 0:09:41]}  Ne6 {[%clk 0:14:45]} 17. Qe2 {[%clk 0:07:08]}  Rfd8 {[%clk 0:14:52]} 18. Qc4 {[%clk 0:06:25]}  a6 {[%clk 0:14:52]} 19. Rxd8+ {[%clk 0:06:29]}  Rxd8 {[%clk 0:12:02]} 20. a5 {[%clk 0:06:29]}  Qe7 {[%clk 0:12:02]} 21. Na4 {[%clk 0:06:29]}  Bf8 {[%clk 0:11:08]} 22. Nb6 {[%clk 0:03:37]}  Qd6 {[%clk 0:11:08]} 23. Qc3 {[%clk 0:03:37]}  Qd3 {[%clk 0:11:08]} 24. Nc4 {[%clk 0:02:47]}  Qxe4 {[%clk 0:09:32]} 25. Qxe5 {[%clk 0:02:47]}  Qc2 {[%clk 0:09:08]} 26. Qc3 {[%clk 0:01:57]}  Qxc3 {[%clk 0:06:49]} 27. bxc3 {[%clk 0:00:25]}  Bg7 {[%clk 0:06:49]} 28. Rc1 {[%clk 0:00:25]}  Rd3 {[%clk 0:06:49]} 29. Kf1 {[%clk 0:00:25]}  Rxc3 {[%clk 0:06:49]} 30. Rd1 {[%clk 0:00:25]}  Rxb3 {[%clk 0:06:49]} 31. Rd7 {[%clk 0:00:25]}  Rb5 {[%clk 0:05:47]} 32. Bb6 {[%clk 0:00:08]}  h5 {[%clk 0:05:47]} 33. Rxb7 {[%clk 0:00:00]}  Nf4 {[%clk 0:03:21]} 34. Kg1 {[%clk 0:00:00]}  Nd5 {[%clk 0:03:21]} 35. Rb8+ {[%clk 0:00:00]}  Kh7 {[%clk 0:03:21]} 36. Rc8 {[%clk 0:00:00]}  Nb4 {[%clk 0:02:10]} 37. Rc7 {[%clk 0:00:17]}  Kg8 {[%clk 0:02:10]} 38. Rc8+ {[%clk 0:00:17]}  Kh7 {[%clk 0:02:10]} 39. Rc7 {[%clk 0:00:17]}  Rf5 {[%clk 0:02:10]} 40. Nd6 {[%clk 0:00:17]}  Be5 {[%clk 0:02:10]} 41. Rxf7+ {[%clk 0:00:17]}  Rxf7 {[%clk 0:02:10]} 42. Nxf7 {[%clk 0:00:17]}  Bf6 {[%clk 0:02:10]} 43. Nd6 {[%clk 0:00:17]}  Kg7 {[%clk 0:02:10]} 44. Kf1 {[%clk 0:00:28]}  Be5 {[%clk 0:00:20]} 45. Ne4 {[%clk 0:00:28]}  Kf7 {[%clk 0:00:20]} 46. Bc5 {[%clk 0:00:28]}  Nd3 {[%clk 0:00:20]} 47. Ke2 {[%clk 0:00:28]}  Nc1+ {[%clk 0:00:20]} 48. Kf3 {[%clk 0:00:28]}  Nb3 {[%clk 0:00:20]} 49. Bb6 {[%clk 0:00:28]}  Ke6 {[%clk 0:00:20]} 50. Ke3 {[%clk 0:00:28]}  Kd5 {[%clk 0:00:20]} 51. f4 {[%clk 0:00:09]}  Bb2 {[%clk 0:00:30]} 52. g4 {[%clk 0:00:09]}  h4 {[%clk 0:00:30]} 53. Ng5 {[%clk 0:00:09]}  Bc1+ {[%clk 0:00:30]} 54. Kf3 {[%clk 0:00:09]}  c5 {[%clk 0:00:30]} 55. Bc7 {[%clk 0:00:09]}  Nd4+ {[%clk 0:00:30]} 56. Kf2 {[%clk 0:00:09]}  c4 {[%clk 0:00:30]} 57. Be5 {[%clk 0:00:09]}  c3 {[%clk 0:00:30]} 58. Bxd4 {[%clk 0:00:09]}  Kxd4 {[%clk 0:00:30]} 59. Ke2 {[%clk 0:00:09]}  Kc4 {[%clk 0:00:30]} 60. Kd1 {[%clk 0:00:09]}  Bxf4 {[%clk 0:00:30]} 61. Nf3 {[%clk 0:00:09]}  Kb3 {[%clk 0:00:30]} 62. Nd4+ {[%clk 0:00:21]}  Kb2 {[%clk 0:00:30]} 63. Nc2 {[%clk 0:00:21]}  Bd6 {[%clk 0:00:30]} 64. Ne3 {[%clk 0:00:21]}  Bc5 {[%clk 0:00:30]} 65. Nc2 {[%clk 0:00:21]}  Kb3 {[%clk 0:00:30]} 66. Kc1 {[%clk 0:00:21]}  Kc4 {[%clk 0:00:30]} 67. Ne1 {[%clk 0:00:21]}  Kb3 {[%clk 0:00:30]} 68. Nc2 {[%clk 0:00:21]}  g5 {[%clk 0:00:30]} 69. Ne1 {[%clk 0:00:21]}  Ba3+ {[%clk 0:00:30]} 70. Kb1 {[%clk 0:00:21]}  Bb4 {[%clk 0:00:30]} 71. Kc1 {[%clk 0:00:21]}  Bxa5 {[%clk 0:00:30]} 72. Nc2 {[%clk 0:00:21]}  Bb6 {[%clk 0:00:30]} 73. Kb1 {[%clk 0:00:21]}  a5 {[%clk 0:00:30]} 74. Na1+ {[%clk 0:00:21]}  Kc4 {[%clk 0:00:30]} 0-1


[Site "http://www.Chess.com"]

[Event "FIDE World Rapid Chess Championship 2021"]
[White "Samunenkov, Ihor"]
[Black "Indjic, Aleksandar"]
[WhiteFideId "14187086"]
[BlackFideId "911925"]
[WhiteElo "2259"]
[BlackElo "2544"]
[Result "1/2-1/2"]
[Round "11"]
[TimeControl "900+10"]
[Date "2021.12.28"]
[WhiteClock "0:00:27"]
[BlackClock "0:01:31"]

1. d4 {[%clk 0:15:00]}  Nf6 {[%clk 0:15:00]} 2. g3 {[%clk 0:15:00]}  c5 {[%clk 0:15:00]} 3. d5 {[%clk 0:15:00]}  g6 {[%clk 0:15:00]} 4. Bg2 {[%clk 0:15:00]}  d6 {[%clk 0:15:00]} 5. a4 {[%clk 0:15:00]}  Bg7 {[%clk 0:15:00]} 6. e4 {[%clk 0:15:00]}  O-O {[%clk 0:15:00]} 7. Ne2 {[%clk 0:15:00]}  e6 {[%clk 0:15:18]} 8. dxe6 {[%clk 0:15:49]}  Bxe6 {[%clk 0:15:18]} 9. O-O {[%clk 0:15:49]}  d5 {[%clk 0:15:18]} 10. Nf4 {[%clk 0:15:49]}  Nxe4 {[%clk 0:15:17]} 11. Nxe6 {[%clk 0:10:59]}  fxe6 {[%clk 0:15:16]} 12. Bxe4 {[%clk 0:10:59]}  dxe4 {[%clk 0:15:16]} 13. Qe2 {[%clk 0:10:59]}  Nc6 {[%clk 0:15:16]} 14. Nd2 {[%clk 0:09:19]}  Nd4 {[%clk 0:15:32]} 15. Qxe4 {[%clk 0:09:19]}  Qd5 {[%clk 0:15:32]} 16. c3 {[%clk 0:09:19]}  Nc6 {[%clk 0:15:32]} 17. Qxd5 {[%clk 0:07:51]}  exd5 {[%clk 0:14:23]} 18. Nb3 {[%clk 0:07:51]}  b6 {[%clk 0:14:23]} 19. Bf4 {[%clk 0:07:51]}  Rfe8 {[%clk 0:14:23]} 20. Rae1 {[%clk 0:07:51]}  Kf7 {[%clk 0:14:23]} 21. Kg2 {[%clk 0:05:29]}  Bf6 {[%clk 0:14:45]} 22. h4 {[%clk 0:05:29]}  Kg7 {[%clk 0:14:45]} 23. Rxe8 {[%clk 0:05:29]}  Rxe8 {[%clk 0:14:45]} 24. Rd1 {[%clk 0:05:29]}  Rd8 {[%clk 0:14:45]} 25. Kf3 {[%clk 0:05:04]}  h6 {[%clk 0:14:04]} 26. Kg4 {[%clk 0:05:04]}  Be5 {[%clk 0:14:07]} 27. Kf3 {[%clk 0:02:46]}  Bxf4 {[%clk 0:10:41]} 28. Kxf4 {[%clk 0:02:46]}  Kf6 {[%clk 0:10:41]} 29. Nd2 {[%clk 0:02:46]}  g5+ {[%clk 0:10:41]} 30. hxg5+ {[%clk 0:02:46]}  hxg5+ {[%clk 0:10:41]} 31. Kf3 {[%clk 0:02:46]}  Ne5+ {[%clk 0:10:41]} 32. Kg2 {[%clk 0:02:46]}  g4 {[%clk 0:11:09]} 33. b3 {[%clk 0:01:41]}  d4 {[%clk 0:11:09]} 34. c4 {[%clk 0:01:41]}  Rh8 {[%clk 0:11:09]} 35. Re1 {[%clk 0:01:41]}  Kf5 {[%clk 0:11:09]} 36. Re4 {[%clk 0:01:41]}  Rh5 {[%clk 0:10:34]} 37. Rf4+ {[%clk 0:00:57]}  Ke6 {[%clk 0:10:34]} 38. Rf8 {[%clk 0:00:57]}  Rf5 {[%clk 0:07:57]} 39. Rxf5 {[%clk 0:00:23]}  Kxf5 {[%clk 0:07:57]} 40. Kf1 {[%clk 0:00:23]}  Nf3 {[%clk 0:07:57]} 41. Nxf3 {[%clk 0:00:23]}  gxf3 {[%clk 0:07:57]} 42. Ke1 {[%clk 0:00:23]}  Kg4 {[%clk 0:07:57]} 43. Kd1 {[%clk 0:00:23]}  Kh3 {[%clk 0:07:28]} 44. Kd2 {[%clk 0:00:11]}  a6 {[%clk 0:07:28]} 45. Kd1 {[%clk 0:00:11]}  Kg2 {[%clk 0:06:08]} 46. Ke1 {[%clk 0:00:14]}  Kh3 {[%clk 0:06:08]} 47. Kd2 {[%clk 0:00:14]}  Kg4 {[%clk 0:06:08]} 48. Kd3 {[%clk 0:00:14]}  Kf5 {[%clk 0:06:08]} 49. Kd2 {[%clk 0:00:14]}  Ke4 {[%clk 0:06:08]} 50. Kc2 {[%clk 0:00:14]}  Ke5 {[%clk 0:03:03]} 51. Kd3 {[%clk 0:00:19]}  Kf5 {[%clk 0:03:03]} 52. Kd2 {[%clk 0:00:19]}  Kg4 {[%clk 0:03:03]} 53. Kd1 {[%clk 0:00:19]}  Kh3 {[%clk 0:03:03]} 54. Kd2 {[%clk 0:00:19]}  Kg2 {[%clk 0:03:03]} 55. Ke1 {[%clk 0:00:19]}  Kh3 {[%clk 0:01:31]} 56. Kd2 {[%clk 0:00:27]}  Kg4 {[%clk 0:01:31]} 57. Kd3 {[%clk 0:00:27]}  Kf5 {[%clk 0:01:31]} 58. Kd2 {[%clk 0:00:27]}  Ke4 {[%clk 0:01:31]} 59. Kc2 {[%clk 0:00:27]}  Ke5 {[%clk 0:01:31]} 60. Kd3 {[%clk 0:00:27]}  Kf5 {[%clk 0:01:31]} 61. Kd2 {[%clk 0:00:27]}  Kg4 {[%clk 0:01:31]} 62. Ke1 {[%clk 0:00:27]}  Kh3 {[%clk 0:01:31]} 63. Kd2 {[%clk 0:00:27]} 1/2-1/2


[Site "http://www.Chess.com"]

[Event "FIDE World Rapid Chess Championship 2021"]
[White "Holm, Kristian Stuvik"]
[Black "Tari, Aryan"]
[WhiteFideId "1508083"]
[BlackFideId "1510045"]
[WhiteElo "2409"]
[BlackElo "2542"]
[Result "0-1"]
[Round "11"]
[TimeControl "900+10"]
[Date "2021.12.28"]
[WhiteClock "0:01:27"]
[BlackClock "0:04:04"]

1. d4 {[%clk 0:15:00]}  d5 {[%clk 0:15:00]} 2. c4 {[%clk 0:15:00]}  e6 {[%clk 0:15:00]} 3. Nc3 {[%clk 0:15:00]}  c5 {[%clk 0:15:00]} 4. cxd5 {[%clk 0:15:00]}  cxd4 {[%clk 0:15:00]} 5. Qa4+ {[%clk 0:15:00]}  Bd7 {[%clk 0:15:00]} 6. Qxd4 {[%clk 0:15:00]}  exd5 {[%clk 0:15:00]} 7. Qxd5 {[%clk 0:15:00]}  Nf6 {[%clk 0:15:00]} 8. Qb3 {[%clk 0:15:00]}  Na6 {[%clk 0:15:00]} 9. Nf3 {[%clk 0:15:39]}  Nc5 {[%clk 0:16:17]} 10. Qc2 {[%clk 0:15:39]}  Rc8 {[%clk 0:16:17]} 11. e3 {[%clk 0:15:39]}  Bd6 {[%clk 0:16:17]} 12. Be2 {[%clk 0:15:39]}  O-O {[%clk 0:16:17]} 13. O-O {[%clk 0:15:39]}  Qe7 {[%clk 0:16:17]} 14. Rd1 {[%clk 0:15:28]}  a6 {[%clk 0:15:45]} 15. Bd2 {[%clk 0:13:41]}  b5 {[%clk 0:15:06]} 16. a3 {[%clk 0:13:41]}  g6 {[%clk 0:15:03]} 17. Nd4 {[%clk 0:09:34]}  Nfe4 {[%clk 0:13:23]} 18. Be1 {[%clk 0:08:53]}  Nxc3 {[%clk 0:13:23]} 19. Qxc3 {[%clk 0:08:53]}  Be5 {[%clk 0:13:23]} 20. Bf3 {[%clk 0:07:52]}  Qh4 {[%clk 0:09:12]} 21. h3 {[%clk 0:06:00]}  Qf6 {[%clk 0:09:12]} 22. b4 {[%clk 0:05:07]}  Ne6 {[%clk 0:06:31]} 23. Qd3 {[%clk 0:05:07]}  Rfd8 {[%clk 0:06:23]} 24. Rac1 {[%clk 0:04:08]}  Rxc1 {[%clk 0:06:23]} 25. Rxc1 {[%clk 0:04:08]}  Nxd4 {[%clk 0:06:23]} 26. exd4 {[%clk 0:04:08]}  Qf4 {[%clk 0:06:23]} 27. Bd2 {[%clk 0:04:05]}  Qh2+ {[%clk 0:04:23]} 28. Kf1 {[%clk 0:04:05]}  Bf5 {[%clk 0:04:23]} 29. Qb3 {[%clk 0:04:05]}  Bxd4 {[%clk 0:04:23]} 30. Bd5 {[%clk 0:04:05]}  Rxd5 {[%clk 0:04:23]} 31. Rc8+ {[%clk 0:01:27]}  Kg7 {[%clk 0:04:04]} 32. Bh6+ {[%clk 0:01:27]}  Kxh6 {[%clk 0:04:04]} 33. Qxd5 {[%clk 0:01:27]}  Bxc8 {[%clk 0:04:04]} 34. Qxd4 {[%clk 0:01:27]}  Qh1+ {[%clk 0:04:04]} 35. Ke2 {[%clk 0:01:27]}  Qxg2 {[%clk 0:04:04]} 36. Qh4+ {[%clk 0:01:27]}  Kg7 {[%clk 0:04:04]} 37. Qd4+ {[%clk 0:01:27]}  f6 {[%clk 0:04:04]} 0-1


[Site "http://www.Chess.com"]

[Event "FIDE World Rapid Chess Championship 2021"]
[White "Suleymanli, Aydin"]
[Black "Smirin, Ilia"]
[WhiteFideId "13413937"]
[BlackFideId "2801990"]
[WhiteElo "2202"]
[BlackElo "2663"]
[Result "1-0"]
[Round "11"]
[TimeControl "900+10"]
[Date "2021.12.28"]
[WhiteClock "0:00:41"]
[BlackClock "0:00:45"]

1. d4 {[%clk 0:15:00]}  Nf6 {[%clk 0:15:00]} 2. c4 {[%clk 0:15:00]}  g6 {[%clk 0:15:00]} 3. Nc3 {[%clk 0:15:00]}  Bg7 {[%clk 0:15:00]} 4. e4 {[%clk 0:15:00]}  d6 {[%clk 0:15:00]} 5. h3 {[%clk 0:15:00]}  Nbd7 {[%clk 0:15:00]} 6. Be3 {[%clk 0:15:00]}  e5 {[%clk 0:15:00]} 7. d5 {[%clk 0:15:00]}  Nc5 {[%clk 0:15:33]} 8. Qc2 {[%clk 0:15:14]}  O-O {[%clk 0:15:33]} 9. b4 {[%clk 0:15:14]}  Na6 {[%clk 0:15:33]} 10. a3 {[%clk 0:15:14]}  c6 {[%clk 0:15:33]} 11. g4 {[%clk 0:15:14]}  cxd5 {[%clk 0:15:33]} 12. cxd5 {[%clk 0:15:14]}  Bd7 {[%clk 0:15:33]} 13. Nge2 {[%clk 0:14:01]}  h5 {[%clk 0:15:17]} 14. f3 {[%clk 0:14:01]}  Nh7 {[%clk 0:15:17]} 15. Rg1 {[%clk 0:12:51]}  Ng5 {[%clk 0:13:22]} 16. Bg2 {[%clk 0:07:48]}  h4 {[%clk 0:11:04]} 17. Qd2 {[%clk 0:07:25]}  Nh7 {[%clk 0:11:04]} 18. O-O-O {[%clk 0:06:25]}  Nc7 {[%clk 0:09:38]} 19. Kb2 {[%clk 0:06:25]}  a5 {[%clk 0:09:38]} 20. Ra1 {[%clk 0:06:25]}  Na6 {[%clk 0:09:38]} 21. Kb3 {[%clk 0:04:28]}  Kh8 {[%clk 0:09:34]} 22. Rgc1 {[%clk 0:04:28]}  Bf6 {[%clk 0:09:27]} 23. Ra2 {[%clk 0:02:07]}  Bg5 {[%clk 0:09:27]} 24. f4 {[%clk 0:02:07]}  exf4 {[%clk 0:09:27]} 25. Bd4+ {[%clk 0:02:07]}  Kg8 {[%clk 0:08:35]} 26. Nxf4 {[%clk 0:01:00]}  Bf6 {[%clk 0:08:35]} 27. Rf1 {[%clk 0:01:00]}  Rc8 {[%clk 0:08:35]} 28. Bxf6 {[%clk 0:01:00]}  Qxf6 {[%clk 0:06:51]} 29. Rc2 {[%clk 0:00:40]}  axb4 {[%clk 0:06:51]} 30. axb4 {[%clk 0:00:40]}  Qd8 {[%clk 0:06:51]} 31. Qe3 {[%clk 0:00:18]}  Re8 {[%clk 0:05:28]} 32. Nd3 {[%clk 0:00:18]}  Nc7 {[%clk 0:05:28]} 33. Rfc1 {[%clk 0:00:09]}  Nb5 {[%clk 0:02:59]} 34. Nxb5 {[%clk 0:00:12]}  Rxc2 {[%clk 0:02:59]} 35. Rxc2 {[%clk 0:00:12]}  Bxb5 {[%clk 0:02:59]} 36. Nb2 {[%clk 0:00:12]}  Nf6 {[%clk 0:02:59]} 37. Qg5 {[%clk 0:00:12]}  Kg7 {[%clk 0:02:59]} 38. Rf2 {[%clk 0:00:12]}  Qe7 {[%clk 0:01:59]} 39. Qf4 {[%clk 0:00:13]}  Nd7 {[%clk 0:01:59]} 40. Qe3 {[%clk 0:00:13]}  Ne5 {[%clk 0:01:59]} 41. Rc2 {[%clk 0:00:13]}  Ra8 {[%clk 0:01:59]} 42. Qb6 {[%clk 0:00:13]}  Qe8 {[%clk 0:01:59]} 43. Rc7 {[%clk 0:00:13]}  Qd8 {[%clk 0:00:24]} 44. Qxb7 {[%clk 0:00:27]}  Ba6 {[%clk 0:00:24]} 45. Qb6 {[%clk 0:00:27]}  Rb8 {[%clk 0:00:24]} 46. Qa5 {[%clk 0:00:27]}  Rb7 {[%clk 0:00:24]} 47. Rxb7 {[%clk 0:00:27]}  Qxa5 {[%clk 0:00:24]} 48. bxa5 {[%clk 0:00:27]}  Bxb7 {[%clk 0:00:24]} 49. Nc4 {[%clk 0:00:27]}  Nxc4 {[%clk 0:00:24]} 50. Kxc4 {[%clk 0:00:27]}  Ba6+ {[%clk 0:00:24]} 51. Kd4 {[%clk 0:00:27]}  f6 {[%clk 0:00:24]} 52. g5 {[%clk 0:00:27]}  Kf7 {[%clk 0:00:24]} 53. gxf6 {[%clk 0:00:31]}  Kxf6 {[%clk 0:01:02]} 54. e5+ {[%clk 0:00:31]}  Ke7 {[%clk 0:01:02]} 55. Be4 {[%clk 0:00:31]}  g5 {[%clk 0:01:02]} 56. Bf5 {[%clk 0:00:31]}  Be2 {[%clk 0:01:02]} 57. Ke3 {[%clk 0:00:31]}  Bc4 {[%clk 0:01:02]} 58. Ke4 {[%clk 0:00:31]}  Bf1 {[%clk 0:01:02]} 59. Bg4 {[%clk 0:00:31]}  Bg2+ {[%clk 0:01:02]} 60. Kf5 {[%clk 0:00:31]}  Bxd5 {[%clk 0:01:02]} 61. exd6+ {[%clk 0:00:31]}  Kxd6 {[%clk 0:01:02]} 62. Kxg5 {[%clk 0:00:31]}  Kc5 {[%clk 0:00:45]} 63. Kxh4 {[%clk 0:00:41]}  Bg2 {[%clk 0:00:45]} 64. a6 {[%clk 0:00:41]}  Kb6 {[%clk 0:00:45]} 65. Be2 {[%clk 0:00:41]} 1-0


[Site "http://www.Chess.com"]

[Event "FIDE World Rapid Chess Championship 2021"]
[White "Mamedov, Rauf"]
[Black "Kantor, Gergely"]
[WhiteFideId "13401653"]
[BlackFideId "751499"]
[WhiteElo "2690"]
[BlackElo "2454"]
[Result "1-0"]
[Round "11"]
[TimeControl "900+10"]
[Date "2021.12.28"]
[WhiteClock "0:09:52"]
[BlackClock "0:08:25"]

1. e4 {[%clk 0:15:00]}  e5 {[%clk 0:15:00]} 2. Nf3 {[%clk 0:15:00]}  Nc6 {[%clk 0:15:00]} 3. Bc4 {[%clk 0:15:00]}  Nf6 {[%clk 0:15:00]} 4. d3 {[%clk 0:15:00]}  Bc5 {[%clk 0:15:00]} 5. c3 {[%clk 0:15:00]}  d6 {[%clk 0:15:00]} 6. Nbd2 {[%clk 0:15:00]}  a5 {[%clk 0:15:00]} 7. Nf1 {[%clk 0:15:00]}  O-O {[%clk 0:15:00]} 8. Ng3 {[%clk 0:15:00]}  Be6 {[%clk 0:15:00]} 9. Bb5 {[%clk 0:15:00]}  Ba7 {[%clk 0:15:38]} 10. O-O {[%clk 0:16:07]}  Ne7 {[%clk 0:15:38]} 11. d4 {[%clk 0:16:07]}  Ng6 {[%clk 0:15:38]} 12. h3 {[%clk 0:16:07]}  exd4 {[%clk 0:15:38]} 13. cxd4 {[%clk 0:16:07]}  d5 {[%clk 0:15:38]} 14. e5 {[%clk 0:16:07]}  Ne4 {[%clk 0:15:38]} 15. Bd3 {[%clk 0:15:12]}  f5 {[%clk 0:15:09]} 16. exf6 {[%clk 0:13:01]}  Nxf6 {[%clk 0:13:39]} 17. Ng5 {[%clk 0:12:39]}  Qd7 {[%clk 0:13:39]} 18. Re1 {[%clk 0:12:22]}  Ne4 {[%clk 0:10:02]} 19. N3xe4 {[%clk 0:12:22]}  dxe4 {[%clk 0:10:02]} 20. Qh5 {[%clk 0:12:22]}  h6 {[%clk 0:10:02]} 21. Nxe6 {[%clk 0:11:02]}  Qxe6 {[%clk 0:09:03]} 22. Bxe4 {[%clk 0:11:02]}  Kh7 {[%clk 0:09:03]} 23. Bxh6 {[%clk 0:11:02]}  gxh6 {[%clk 0:08:25]} 24. Bxg6+ {[%clk 0:09:52]}  Qxg6 {[%clk 0:08:25]} 25. Re7+ {[%clk 0:09:52]}  Qg7 {[%clk 0:08:25]} 26. Rxg7+ {[%clk 0:09:52]}  Kxg7 {[%clk 0:08:25]} 27. Re1 {[%clk 0:09:52]}  Rf7 {[%clk 0:08:25]} 28. Re6 {[%clk 0:09:52]} 1-0


[Site "http://www.Chess.com"]